fUST/lending_fUST_20250928
["ID","MTS","AMOUNT","RATE_DAILY","PERIOD"]
[388216017,1759044641940,-329.0,0.00035544,14]
[388216018,1759044641949,-329.0,0.00035544,14]
[388216019,1759044641959,-329.0,0.00035544,14]
[388216020,1759044641968,-329.0,0.00035544,14]
[388216021,1759044641978,-329.0,0.00035544,14]
[388216022,1759044641987,-329.0,0.00035544,14]
[388216023,1759044641996,-329.0,0.00035544,14]
[388216024,1759044642006,-329.0,0.00035544,14]
[388216025,1759044642015,-329.0,0.00035544,14]
[388216026,1759044642024,-329.0,0.00035544,14]
[388216027,1759044642034,-329.0,0.00035544,14]
[388216028,1759044642043,-377.49185479,0.00035544,14]
[388216029,1759044642052,-172.0,0.00035544,14]
[388216030,1759044642061,-162.44067088,0.00035544,14]
[388216031,1759044642070,-2134.80351948,0.00035545,2]
[388216032,1759044642079,-151.0,0.00035586,7]
[388216033,1759044642088,-296.895621,0.00035586,7]
[388216034,1759044642097,-10000.0,0.00035586,7]
[388216035,1759044642106,-10000.0,0.00035586,7]
[388216036,1759044642116,-10000.0,0.00035586,7]
[388216037,1759044642124,-10000.0,0.00035586,7]
[388216038,1759044642134,-10000.0,0.00035586,7]
[388216039,1759044642143,-10000.0,0.00035586,7]
[388216040,1759044642152,-10000.0,0.00035586,7]
[388216041,1759044642161,-10000.0,0.00035586,7]
[388216042,1759044642170,-10000.0,0.00035586,7]
[388216043,1759044642179,-273.0,0.00035596,2]
[388216044,1759044642188,-168.0,0.00035598,2]
[388216045,1759044642197,-151.0,0.000356,12]
[388216046,1759044642206,-151.0,0.000356,20]
[388216047,1759044642216,-151.0,0.000356,12]
[388216048,1759044642226,-1438.66,0.000356,14]
[388216049,1759044642235,-205.192642,0.000356,2]
[388216050,1759044642244,-151.0,0.00035606,7]
[388216051,1759044642253,-10000.0,0.00035606,7]
[388216052,1759044642262,-10000.0,0.00035606,7]
[388216053,1759044642271,-10000.0,0.00035606,7]
[388216054,1759044642280,-10000.0,0.00035606,7]
[388216055,1759044642288,-10000.0,0.00035606,7]
[388216056,1759044642298,-10000.0,0.00035606,7]
[388216057,1759044642307,-10000.0,0.00035606,7]
[388216058,1759044642315,-10000.0,0.00035606,7]
[388216059,1759044642325,-10000.0,0.00035606,7]
[388216060,1759044642334,-200.0,0.00035615,10]
[388216061,1759044642343,-165.60004426,0.00035615,10]
[388216062,1759044642353,-1171.12,0.00035615,30]
[388216063,1759044642362,-3084.42071858,0.00035615,4]
[388216064,1759044642372,-2717.48031946,0.00035615,4]
[388216065,1759044642381,-658.13846879,0.00035616,3]
[388216066,1759044642389,-150000.0,0.00035616,4]
[388216067,1759044642400,-87180.38103405,0.00035616,4]
[388216068,1759044642410,-480.0,0.00035616,9]
[388216069,1759044642420,-480.0,0.00035616,9]
[388216070,1759044642429,-480.0,0.00035616,9]
[388216071,1759044642438,-480.0,0.00035616,9]
[388216072,1759044642448,-480.0,0.00035616,9]
[388216073,1759044642457,-480.28597715,0.00035616,9]
[388216074,1759044642466,-539.4,0.00035616,9]
[388216075,1759044642476,-539.4,0.00035616,9]
[388216076,1759044642485,-480.0,0.00035616,9]
[388216077,1759044642494,-480.31317012,0.00035616,9]
[388216078,1759044642504,-480.47508503,0.00035616,9]
[388216079,1759044642513,-481.37440666,0.00035616,9]
[388216080,1759044642522,-1160.09,0.00035616,9]
[388216081,1759044642532,-480.29971497,0.00035616,9]
[388216082,1759044642541,-480.0,0.00035616,9]
[388216083,1759044642550,-480.0,0.00035616,9]
[388216084,1759044642559,-480.0,0.00035616,9]
[388216085,1759044642568,-480.0,0.00035616,9]
[388216086,1759044642578,-480.0,0.00035616,9]
[388216087,1759044642587,-480.0,0.00035616,9]
[388216088,1759044642596,-480.0,0.00035616,9]
[388216089,1759044642605,-480.0,0.00035616,9]
[388216090,1759044642614,-480.0,0.00035616,9]
[388216091,1759044642623,-759.44,0.00035616,9]
[388216092,1759044642632,-480.90341427,0.00035616,9]
[388216093,1759044642642,-480.0,0.00035616,9]
[388216094,1759044642651,-932.14,0.00035616,9]
[388216095,1759044642659,-480.0,0.00035616,9]
[388216096,1759044642668,-482.96,0.00035616,9]
[388216097,1759044642677,-1701.51,0.00035616,9]
[388216098,1759044642686,-480.0,0.00035616,9]
[388216099,1759044642695,-480.0,0.00035616,9]
[388216100,1759044642704,-481.06224632,0.00035616,9]
[388216101,1759044642713,-480.58374072,0.00035616,9]
[388216102,1759044642722,-480.0,0.00035616,9]
[388216103,1759044642736,-480.0,0.00035616,9]
[388216104,1759044642751,-1328.63,0.00035616,9]
[388216105,1759044642766,-855.15,0.00035616,9]
[388216106,1759044642779,-480.0,0.00035616,9]
[388216107,1759044642793,-480.0,0.00035616,9]
[388216108,1759044642806,-480.0,0.00035616,9]
[388216109,1759044642825,-729.11,0.00035616,9]
[388216110,1759044642841,-480.0,0.00035616,9]
[388216111,1759044642855,-974.24,0.00035616,9]
[388216112,1759044642869,-9570.51,0.00035616,9]
[388216113,1759044642882,-481.1951356,0.00035616,9]
[388216114,1759044642894,-480.0,0.00035616,9]
[388216115,1759044642908,-480.0,0.00035616,9]
[388216116,1759044642921,-480.0,0.00035616,9]
[388216117,1759044642931,-568.86,0.00035616,9]
[388216118,1759044642944,-480.0,0.00035616,9]
[388216120,1759044642957,-480.0,0.00035616,9]
[388216123,1759044642970,-524.79,0.00035616,9]
[388216125,1759044642984,-480.0,0.00035616,9]
[388216128,1759044642999,-237.64819244,0.00035616,9]
[388216130,1759044643013,-480.0,0.00035616,9]
[388216133,1759044643027,-480.0,0.00035616,9]
[388216135,1759044643037,-480.0,0.00035616,9]
[388216137,1759044643048,-480.0,0.00035616,9]
[388216139,1759044643063,-480.0,0.00035616,9]
[388216140,1759044643077,-682.23,0.00035616,9]
[388216141,1759044643088,-500.0,0.00035616,2]
[388216142,1759044643100,-504.31606772,0.00035616,2]
[388216143,1759044643113,-480.0,0.00035616,9]
[388216144,1759044643124,-480.0,0.00035616,9]
[388216145,1759044643134,-480.0,0.00035616,9]
[388216146,1759044643146,-480.0,0.00035616,9]
[388216147,1759044643158,-480.0,0.00035616,9]
[388216148,1759044643170,-480.0,0.00035616,7]
[388216149,1759044643182,-480.0,0.00035616,9]
[388216150,1759044643193,-480.0,0.00035616,9]
[388216151,1759044643206,-481.08275928,0.00035616,9]
[388216152,1759044643217,-480.0,0.00035616,9]
[388216153,1759044643230,-488.42902589,0.00035616,9]
[388216155,1759044643244,-712.29,0.00035616,9]
[388216157,1759044643256,-480.0,0.00035616,9]
[388216159,1759044643268,-480.0,0.00035616,9]
[388216161,1759044643279,-480.94846567,0.00035616,9]
[388216163,1759044643291,-480.0,0.00035616,9]
[388216165,1759044643304,-537.42,0.00035616,9]
[388216166,1759044643316,-480.0,0.00035616,9]
[388216168,1759044643328,-1094.08,0.00035616,9]
[388216169,1759044643340,-480.0,0.00035616,9]
[388216172,1759044643352,-969.67,0.00035616,9]
[388216174,1759044643364,-395.20251743,0.00035616,9]
[388216175,1759044643375,-480.94910808,0.00035616,9]
[388216177,1759044643387,-480.0,0.00035616,9]
[388216178,1759044643399,-1624.68,0.00035616,9]
[388216179,1759044643410,-480.0,0.00035616,9]
[388216180,1759044643423,-480.0,0.00035616,9]
[388216182,1759044643435,-480.0,0.00035616,9]
[388216184,1759044643446,-480.0,0.00035616,9]
[388216186,1759044643458,-480.0,0.00035616,9]
[388216187,1759044643470,-480.0,0.00035616,9]
[388216188,1759044643482,-480.0,0.00035616,9]
[388216189,1759044643495,-480.0,0.00035616,9]
[388216190,1759044643507,-480.0,0.00035616,9]
[388216191,1759044643520,-480.0,0.00035616,9]
[388216192,1759044643532,-480.0,0.00035616,9]
[388216193,1759044643545,-480.0,0.00035616,9]
[388216194,1759044643557,-480.0,0.00035616,9]
[388216195,1759044643569,-717.67,0.00035616,9]
[388216196,1759044643582,-674.51,0.00035616,9]
[388216197,1759044643594,-902.3,0.00035616,9]
[388216198,1759044643606,-480.0,0.00035616,9]
[388216199,1759044643619,-480.0,0.00035616,9]
[388216200,1759044643631,-480.0,0.00035616,9]
[388216201,1759044643644,-480.0,0.00035616,9]
[388216202,1759044643656,-480.0,0.00035616,9]
[388216203,1759044643668,-600.0,0.00035616,9]
[388216204,1759044643680,-480.0,0.00035616,9]
[388216205,1759044643692,-480.0,0.00035616,9]
[388216207,1759044643704,-1080.43,0.00035616,9]
[388216208,1759044643716,-480.73335312,0.00035616,9]
[388216209,1759044643728,-480.97999483,0.00035616,9]
[388216210,1759044643740,-480.0,0.00035616,9]
[388216211,1759044643752,-825.64,0.00035616,9]
[388216212,1759044643764,-480.99304295,0.00035616,9]
[388216213,1759044643776,-843.73,0.00035616,9]
[388216214,1759044643787,-480.0,0.00035616,9]
[388216217,1759044643799,-480.0,0.00035616,9]
[388216219,1759044643811,-480.0,0.00035616,9]
[388216221,1759044643827,-389.24191048,0.00035616,9]
[388216224,1759044643838,-480.0,0.00035616,9]
[388216226,1759044643850,-480.0,0.00035616,9]
[388216228,1759044643863,-345.46271853,0.00035616,9]
[388216230,1759044643875,-3644.67,0.00035616,9]
[388216233,1759044643887,-2404.55,0.00035616,9]
[388216235,1759044643899,-480.0,0.00035616,9]
[388216237,1759044643911,-638.99,0.00035616,9]
[388216239,1759044643923,-480.4549441,0.00035616,9]
[388216240,1759044643935,-480.0,0.00035616,9]
[388216241,1759044643947,-480.0,0.00035616,9]
[388216242,1759044643958,-480.0,0.00035616,9]
[388216244,1759044643970,-480.0,0.00035616,9]
[388216246,1759044643981,-539.38,0.00035616,9]
[388216249,1759044643993,-480.0,0.00035616,9]
[388216251,1759044644004,-480.0,0.00035616,9]
[388216253,1759044644017,-480.0,0.00035616,9]
[388216255,1759044644029,-480.0,0.00035616,9]
[388216258,1759044644040,-480.0,0.00035616,9]
[388216260,1759044644052,-1045.4,0.00035616,9]
[388216262,1759044644064,-480.0,0.00035616,9]
[388216265,1759044644075,-480.0,0.00035616,9]
[388216267,1759044644087,-480.0,0.00035616,9]
[388216269,1759044644099,-480.0,0.00035616,9]
[388216272,1759044644111,-786.31,0.00035616,9]
[388216274,1759044644124,-480.0,0.00035616,9]
[388216276,1759044644136,-482.4166824,0.00035616,9]
[388216279,1759044644148,-586.77022588,0.00035616,9]
[388216281,1759044644160,-480.0,0.00035616,9]
[388216283,1759044644171,-480.0,0.00035616,9]
[388216286,1759044644184,-480.0,0.00035616,9]
[388216288,1759044644195,-568.86,0.00035616,9]
[388216290,1759044644207,-1139.23,0.00035616,9]
[388216293,1759044644219,-480.0,0.00035616,9]
[388216295,1759044644229,-480.0,0.00035616,9]
[388216296,1759044644239,-480.0,0.00035616,9]
[388216299,1759044644249,-480.0,0.00035616,9]
[388216301,1759044644258,-480.0,0.00035616,9]
[388216303,1759044644267,-480.0,0.00035616,9]
[388216305,1759044644277,-480.0,0.00035616,9]
[388216306,1759044644286,-847.38,0.00035616,9]
[388216308,1759044644295,-707.53,0.00035616,9]
[388216310,1759044644304,-480.0,0.00035616,9]
[388216312,1759044644314,-480.0,0.00035616,9]
[388216315,1759044644324,-633.96,0.00035616,9]
[388216316,1759044644335,-480.0,0.00035616,9]
[388216349,1759044644634,-544.29,0.00035616,9]
[388216351,1759044644652,-480.0,0.00035616,9]
[388216354,1759044644662,-480.0,0.00035616,7]
[388216356,1759044644671,-480.0,0.00035616,9]
[388216358,1759044644680,-480.0,0.00035616,9]
[388216360,1759044644690,-480.0,0.00035616,9]
[388216362,1759044644699,-515.63,0.00035616,9]
[388216364,1759044644709,-438.51118283,0.00035616,9]
[388216366,1759044644718,-480.0,0.00035616,9]
[388216368,1759044644727,-480.0,0.00035616,9]
[388216370,1759044644735,-480.0,0.00035616,9]
[388216372,1759044644745,-550.91496746,0.00035616,9]
[388216374,1759044644754,-480.0,0.00035616,9]
[388216376,1759044644763,-480.0,0.00035616,9]
[388216378,1759044644772,-816.17,0.00035616,9]
[388216380,1759044644781,-482.01234016,0.00035616,9]
[388216382,1759044644790,-480.0,0.00035616,9]
[388216384,1759044644799,-480.80862221,0.00035616,9]
[388216386,1759044644808,-984.87,0.00035616,9]
[388216388,1759044644821,-480.0,0.00035616,9]
[388216390,1759044644831,-755.1,0.00035616,9]
[388216391,1759044644840,-1101.93,0.00035616,9]
[388216393,1759044644849,-480.0,0.00035616,9]
[388216395,1759044644858,-822.8,0.00035616,9]
[388216397,1759044644867,-480.0,0.00035616,9]
[388216399,1759044644877,-1413.1,0.00035616,9]
[388216401,1759044644886,-870.13,0.00035616,9]
[388216404,1759044644896,-488.76,0.00035616,9]
[388216405,1759044644907,-1700.93,0.00035616,9]
[388216407,1759044644916,-480.0,0.00035616,9]
[388216409,1759044644926,-480.0,0.00035616,9]
[388216411,1759044644935,-502.91214746,0.00035616,9]
[388216413,1759044644944,-480.0,0.00035616,9]
[388216416,1759044644953,-972.14,0.00035616,9]
[388216418,1759044644962,-480.0,0.00035616,9]
[388216420,1759044644971,-555.63,0.00035616,9]
[388216422,1759044644980,-480.0,0.00035616,9]
[388216423,1759044644989,-746.72,0.00035616,9]
[388216425,1759044644998,-1000.0,0.00035616,9]
[388216427,1759044645007,-595.32,0.00035616,9]
[388216429,1759044645016,-480.0,0.00035616,9]
[388216431,1759044645025,-597.94,0.00035616,9]
[388216434,1759044645035,-480.0,0.00035616,9]
[388216436,1759044645044,-1152.4,0.00035616,9]
[388216438,1759044645054,-972.07,0.00035616,9]
[388216440,1759044645062,-447.95856811,0.00035616,9]
[388216442,1759044645071,-506.06750144,0.00035616,9]
[388216444,1759044645080,-480.0,0.00035616,9]
[388216445,1759044645090,-1109.25,0.00035616,9]
[388216447,1759044645099,-480.0,0.00035616,9]
[388216449,1759044645108,-480.0,0.00035616,9]
[388216451,1759044645116,-719.19,0.00035616,9]
[388216453,1759044645125,-480.0,0.00035616,9]
[388216455,1759044645134,-480.0,0.00035616,9]
[388216457,1759044645144,-865.56,0.00035616,9]
[388216459,1759044645153,-480.0,0.00035616,9]
[388216461,1759044645162,-480.0,0.00035616,9]
[388216463,1759044645171,-1069.24,0.00035616,9]
[388216465,1759044645180,-480.77342575,0.00035616,9]
[388216467,1759044645189,-484.53927041,0.00035616,9]
[388216469,1759044645198,-480.0,0.00035616,9]
[388216471,1759044645207,-531.06060558,0.00035616,9]
[388216473,1759044645216,-480.0,0.00035616,9]
[388216475,1759044645226,-1416.41,0.00035616,9]
[388216477,1759044645235,-504.46,0.00035616,9]
[388216479,1759044645245,-545.66,0.00035616,9]
[388216481,1759044645254,-480.0,0.00035616,9]
[388216483,1759044645263,-480.0,0.00035616,9]
[388216485,1759044645272,-480.0,0.00035616,9]
[388216487,1759044645281,-884.24,0.00035616,9]
[388216489,1759044645291,-1237.34,0.00035616,9]
[388216491,1759044645300,-480.0,0.00035616,9]
[388216493,1759044645310,-1451.08,0.00035616,9]
[388216495,1759044645319,-480.48855432,0.00035616,9]
[388216497,1759044645328,-308.49263053,0.00035616,9]
[388216499,1759044645337,-480.0,0.00035616,9]
[388216501,1759044645346,-1783.77,0.00035616,9]
[388216503,1759044645356,-480.0,0.00035616,9]
[388216505,1759044645366,-1605.71,0.00035616,9]
[388216507,1759044645375,-1000.65,0.00035616,9]
[388216509,1759044645384,-480.0,0.00035616,9]
[388216511,1759044645394,-596.33,0.00035616,9]
[388216513,1759044645403,-480.0,0.00035616,9]
[388216515,1759044645412,-480.0,0.00035616,9]
[388216518,1759044645421,-481.92304279,0.00035616,9]
[388216521,1759044645442,-480.0,0.00035616,9]
[388216523,1759044645452,-480.0,0.00035616,9]
[388216525,1759044645462,-1110.74,0.00035616,9]
[388216527,1759044645472,-480.0,0.00035616,9]
[388216529,1759044645482,-484.13438173,0.00035616,9]
[388216531,1759044645492,-666.79,0.00035616,9]
[388216533,1759044645501,-902.59,0.00035616,9]
[388216535,1759044645513,-480.0,0.00035616,9]
[388216537,1759044645522,-480.0,0.00035616,9]
[388216538,1759044645532,-480.0,0.00035616,9]
[388216539,1759044645542,-480.0,0.00035616,9]
[388216540,1759044645551,-500.0,0.00035616,9]
[388216541,1759044645561,-500.0,0.00035616,9]
[388216542,1759044645570,-500.0,0.00035616,9]
[388216543,1759044645580,-500.0,0.00035616,9]
[388216544,1759044645589,-500.0,0.00035616,9]
[388216545,1759044645600,-500.0,0.00035616,9]
[388216546,1759044645609,-500.0,0.00035616,9]
[388216547,1759044645619,-500.0,0.00035616,9]
[388216548,1759044645629,-512.67554957,0.00035616,9]
[388216549,1759044645639,-480.0,0.00035616,9]
[388216550,1759044645648,-655.99,0.00035616,9]
[388216551,1759044645658,-480.68254787,0.00035616,9]
[388216552,1759044645668,-480.0,0.00035616,9]
[388216553,1759044645678,-480.0,0.00035616,9]
[388216554,1759044645688,-480.0,0.00035616,9]
[388216555,1759044645698,-480.0,0.00035616,9]
[388216556,1759044645708,-480.0,0.00035616,9]
[388216557,1759044645717,-480.52437686,0.00035616,9]
[388216558,1759044645727,-480.0,0.00035616,9]
[388216559,1759044645737,-423.44418443,0.00035616,9]
[388216560,1759044645747,-2146.47,0.00035616,9]
[388216562,1759044645758,-315.69409829,0.00035616,9]
[388216564,1759044645767,-480.0,0.00035616,9]
[388216565,1759044645777,-480.0,0.00035616,9]
[388216566,1759044645787,-480.0,0.00035616,9]
[388216567,1759044645797,-480.0,0.00035616,9]
[388216568,1759044645806,-868.96,0.00035616,9]
[388216570,1759044645820,-906.37,0.00035616,9]
[388216571,1759044645830,-481.35465878,0.00035616,9]
[388216574,1759044645840,-480.0,0.00035616,9]
[388216575,1759044645850,-480.0,0.00035616,9]
[388216577,1759044645862,-532.11,0.00035616,9]
[388216579,1759044645871,-480.0,0.00035616,9]
[388216581,1759044645880,-855.97,0.00035616,9]
[388216583,1759044645890,-480.80938272,0.00035616,9]
[388216585,1759044645900,-540.48,0.00035616,9]
[388216587,1759044645910,-480.0,0.00035616,9]
[388216589,1759044645920,-480.0,0.00035616,9]
[388216590,1759044645929,-480.0,0.00035616,9]
[388216591,1759044645939,-480.0,0.00035616,9]
[388216592,1759044645949,-1115.64,0.00035616,9]
[388216593,1759044645958,-823.09,0.00035616,9]
[388216594,1759044645967,-480.97225158,0.00035616,9]
[388216595,1759044645977,-480.0,0.00035616,9]
[388216596,1759044645987,-480.0,0.00035616,7]
[388216598,1759044645996,-994.25,0.00035616,9]
[388216600,1759044646006,-480.0,0.00035616,9]
[388216603,1759044646015,-601.46284553,0.00035616,9]
[388216605,1759044646025,-1023.31,0.00035616,9]
[388216607,1759044646034,-480.84263304,0.00035616,9]
[388216609,1759044646044,-480.0,0.00035616,9]
[388216612,1759044646058,-480.70139801,0.00035616,9]
[388216613,1759044646068,-480.0,0.00035616,9]
[388216614,1759044646077,-500.0,0.00035616,9]
[388216615,1759044646087,-500.0,0.00035616,9]
[388216616,1759044646097,-480.0,0.00035616,9]
[388216617,1759044646106,-500.0,0.00035616,9]
[388216618,1759044646116,-480.0,0.00035616,9]
[388216619,1759044646127,-500.0,0.00035616,9]
[388216620,1759044646137,-500.0,0.00035616,9]
[388216621,1759044646146,-500.0,0.00035616,9]
[388216622,1759044646156,-500.0,0.00035616,9]
[388216623,1759044646165,-234.754086,0.00035616,9]
[388216624,1759044646175,-480.0,0.00035616,9]
[388216625,1759044646185,-480.0,0.00035616,9]
[388216626,1759044646195,-498.14,0.00035616,9]
[388216627,1759044646205,-480.0,0.00035616,9]
[388216628,1759044646215,-480.0,0.00035616,9]
[388216629,1759044646225,-480.0,0.00035616,9]
[388216630,1759044646235,-4831.56,0.00035616,9]
[388216631,1759044646245,-480.0,0.00035616,9]
[388216632,1759044646255,-480.0,0.00035616,9]
[388216633,1759044646265,-480.62678891,0.00035616,9]
[388216634,1759044646275,-585.91,0.00035616,9]
[388216635,1759044646285,-480.0,0.00035616,9]
[388216636,1759044646295,-524.55,0.00035616,9]
[388216637,1759044646305,-480.0,0.00035616,9]
[388216638,1759044646315,-480.0,0.00035616,9]
[388216639,1759044646325,-480.39999638,0.00035616,9]
[388216640,1759044646335,-354.53685223,0.00035616,9]
[388216641,1759044646344,-480.0,0.00035616,9]
[388216642,1759044646354,-520.0,0.00035616,3]
[388216643,1759044646364,-480.3502122,0.00035616,9]
[388216644,1759044646373,-480.12678287,0.00035616,9]
[388216645,1759044646383,-480.0,0.00035616,9]
[388216646,1759044646392,-480.0,0.00035616,9]
[388216647,1759044646402,-480.0,0.00035616,9]
[388216648,1759044646411,-798.9,0.00035616,9]
[388216649,1759044646422,-480.0,0.00035616,9]
[388216650,1759044646432,-381.31458081,0.00035616,9]
[388216651,1759044646442,-846.09,0.00035616,9]
[388216652,1759044646452,-897.92,0.00035616,9]
[388216653,1759044646461,-480.0,0.00035616,9]
[388216654,1759044646472,-480.0,0.00035616,9]
[388216655,1759044646482,-268.73470479,0.00035616,9]
[388216656,1759044646491,-480.0,0.00035616,9]
[388216657,1759044646502,-480.0,0.00035616,9]
[388216658,1759044646512,-480.0,0.00035616,9]
[388216659,1759044646522,-480.0,0.00035616,9]
[388216660,1759044646532,-480.0,0.00035616,9]
[388216661,1759044646542,-480.0,0.00035616,9]
[388216662,1759044646551,-480.0,0.00035616,9]
[388216663,1759044646561,-752.47,0.00035616,9]
[388216664,1759044646571,-481.15316016,0.00035616,9]
[388216665,1759044646580,-480.0,0.00035616,9]
[388216666,1759044646591,-480.0,0.00035616,9]
[388216667,1759044646600,-3848.32,0.00035616,9]
[388216668,1759044646610,-480.0,0.00035616,9]
[388216669,1759044646619,-591.42,0.00035616,9]
[388216670,1759044646629,-920.17,0.00035616,9]
[388216671,1759044646639,-481.39282536,0.00035616,9]
[388216672,1759044646648,-480.0,0.00035616,9]
[388216673,1759044646658,-847.08,0.00035616,9]
[388216674,1759044646668,-480.0,0.00035616,9]
[388216676,1759044646679,-480.0,0.00035616,9]
[388216677,1759044646689,-2040.62,0.00035616,9]
[388216678,1759044646699,-480.0,0.00035616,9]
[388216679,1759044646709,-481.21051043,0.00035616,9]
[388216680,1759044646720,-480.0,0.00035616,9]
[388216681,1759044646729,-269.7402334,0.00035616,9]
[388216682,1759044646738,-480.0,0.00035616,9]
[388216683,1759044646748,-1796.73,0.00035616,9]
[388216684,1759044646758,-480.0,0.00035616,9]
[388216685,1759044646767,-1151.05,0.00035616,9]
[388216686,1759044646778,-1744.06,0.00035616,9]
[388216687,1759044646787,-480.0,0.00035616,9]
[388216688,1759044646797,-480.0,0.00035616,9]
[388216689,1759044646807,-480.0,0.00035616,9]
[388216690,1759044646821,-480.0,0.00035616,9]
[388216691,1759044646830,-480.57166384,0.00035616,9]
[388216692,1759044646840,-1231.25,0.00035616,9]
[388216693,1759044646849,-480.25449642,0.00035616,9]
[388216694,1759044646859,-480.0,0.00035616,9]
[388216695,1759044646869,-480.74732216,0.00035616,9]
[388216697,1759044646878,-480.0,0.00035616,9]
[388216699,1759044646887,-481.84304791,0.00035616,9]
[388216701,1759044646897,-480.0,0.00035616,9]
[388216703,1759044646906,-480.0,0.00035616,9]
[388216705,1759044646915,-480.0,0.00035616,9]
[388216707,1759044646925,-480.0,0.00035616,9]
[388216709,1759044646934,-524.34471382,0.00035616,9]
[388216710,1759044646943,-240.4,0.00035616,9]
[388216712,1759044646953,-2221.01,0.00035616,9]
[388216714,1759044646962,-480.0,0.00035616,9]
[388216716,1759044646972,-480.0,0.00035616,9]
[388216718,1759044646982,-480.0,0.00035616,9]
[388216720,1759044646991,-1317.35,0.00035616,9]
[388216722,1759044647001,-480.0,0.00035616,9]
[388216724,1759044647010,-480.0,0.00035616,9]
[388216726,1759044647020,-480.0,0.00035616,9]
[388216728,1759044647029,-480.0,0.00035616,9]
[388216730,1759044647039,-1182.78,0.00035616,9]
[388216732,1759044647049,-633.61,0.00035616,9]
[388216734,1759044647058,-881.9,0.00035616,9]
[388216736,1759044647067,-480.0,0.00035616,9]
[388216738,1759044647076,-480.0,0.00035616,9]
[388216740,1759044647085,-480.55339367,0.00035616,9]
[388216742,1759044647095,-481.60465909,0.00035616,9]
[388216744,1759044647105,-641.51,0.00035616,9]
[388216746,1759044647115,-950.0,0.00035616,9]
[388216748,1759044647124,-480.0,0.00035616,9]
[388216750,1759044647133,-871.43,0.00035616,9]
[388216752,1759044647143,-480.52890964,0.00035616,2]
[388216754,1759044647152,-480.0,0.00035616,9]
[388216756,1759044647162,-480.0,0.00035616,9]
[388216757,1759044647171,-480.0,0.00035616,9]
[388216758,1759044647181,-981.44,0.00035616,9]
[388216759,1759044647190,-480.0,0.00035616,9]
[388216760,1759044647200,-480.0,0.00035616,9]
[388216761,1759044647209,-480.0,0.00035616,9]
[388216762,1759044647219,-913.52,0.00035616,9]
[388216763,1759044647228,-480.0,0.00035616,9]
[388216764,1759044647237,-499.31278281,0.00035616,9]
[388216765,1759044647247,-480.0,0.00035616,9]
[388216766,1759044647258,-1150.88,0.00035616,9]
[388216767,1759044647268,-480.0,0.00035616,9]
[388216768,1759044647277,-1005.89,0.00035616,9]
[388216769,1759044647287,-692.72,0.00035616,9]
[388216770,1759044647296,-480.0,0.00035616,9]
[388216771,1759044647305,-480.0,0.00035616,9]
[388216772,1759044647315,-480.0,0.00035616,9]
[388216773,1759044647324,-781.98,0.00035616,9]
[388216774,1759044647334,-480.0,0.00035616,9]
[388216775,1759044647344,-498.77117829,0.00035616,9]
[388216776,1759044647353,-3211.64,0.00035616,9]